Cogmind - Beta 14 @@@ ROGUE MODE // 2025.04.27 @ 21:04:57 Player: DuckBoy Result: Destroyed by RV-3HF(R) with Subdweller Machine Gun Performance ------------- Evolutions (0) 0 Regions Visited (2) 400 Robots Destroyed (29) 145 Value Destroyed (684) 684 Prototype IDs (0) 0 Alien Tech Used (0) 0 Bonus (0) 0 TOTAL SCORE: 1229 Bonus ------- None Cogmind --------- Core Integrity 0/250 Matter 300/300 Energy 100/100 System Corruption 0% Temperature Warm (124) Movement Rolling (120) Ox1 Location -10/Subcaves Parts ------- > --- POWER (1) -------- (None) > --- PROPULSION (2) --- Subdweller Monowheel > --- UTILITY (2) ------ Large Storage Unit > --- WEAPON (2) ------- Subdweller Beam Cannon Subdweller Beam Cannon > --- INVENTORY (15) --- Ion Engine Light Ion Engine Subdweller Power Source Disposable Heat Sink High-capacity Storage Unit Huge Storage Unit EM Shotgun Small Laser Subdweller Laser Particle Cannon Subdweller Machine Gun Battle Cannon Battle Cannon Grenade Launcher Multitool Peak State ------------ > --- POWER ------------ Makeshift Power Source > --- PROPULSION ------- Wheel Subdweller Monowheel > --- UTILITY ---------- Cooling System Large Storage Unit > --- WEAPON ----------- Subdweller Beam Cannon Subdweller Beam Cannon > --- INVENTORY -------- Ion Engine Light Ion Engine Disposable Heat Sink High-capacity Storage Unit Huge Storage Unit EM Shotgun Small Laser Subdweller Laser Particle Cannon Subdweller Machine Gun Battle Cannon Battle Cannon Grenade Launcher [Rating: 16] Favorites ----------- Power Makeshift Power Source Engine Makeshift Power Source Propulsion Light Treads Treads Light Treads Wheel Wheel Utility Large Storage Unit Device Cooling System Storage Large Storage Unit Weapon Subdweller Beam Cannon Energy Gun EM Shotgun Energy Cannon Subdweller Beam Cannon Launcher Grenade Launcher Build | -11 -10 -10 ------- Run | Yrd Mat Sub Slots Evolved . | . . . Power . | . . . Propulsion . | . . . Utility . | . . . Weapon . | . . . Parts Attached 35 | 6 18 11 Power 4 | 1 2 1 Engine 4 | 1 2 1 Core . | . . . Reactor . | . . . Propulsion 9 | 2 5 2 Treads 5 | 2 3 . Leg . | . . . Wheel 4 | . 2 2 Hover . | . . . Flight . | . . . Utility 3 | 1 2 . Device 1 | . 1 . Storage 2 | 1 1 . Processor . | . . . Hackware . | . . . Protection . | . . . Artifact . | . . . Weapon 19 | 2 9 8 Energy Gun 8 | 2 6 . Energy Cannon 8 | . 3 5 Ballistic Gun . | . . . Ballistic Cannon . | . . . Launcher 3 | . . 3 Special Weapon . | . . . Impact Weapon . | . . . Slashing Weapon . | . . . Piercing Weapon . | . . . Special Melee Weapon . | . . . Unidentified Prototypes . | . . . Parts Lost 11 | . 6 5 Power 2 | . 1 1 Propulsion 5 | . 2 3 Utility 1 | . . 1 Weapon 3 | . 3 . Highest Loss Streak 3 | . 3 1 To Critical Strikes . | . . . Average Slot Usage (%) 91 | . 92 90 Engine 13 | . 13 14 Treads 10 | . 22 . Wheel 11 | . 1 19 Device 11 | . 10 12 Storage 14 | . 14 14 Energy Gun 10 | . 20 1 Energy Cannon 16 | . 6 23 Launcher 1 | . . 2 Peak Build Rating 16 | 6 11 16 Average Rating 11 | 4 9 13 On Entrance 5 | . 6 10 Naked Turns . | . . . Heaviest Build 42 | 13 34 42 Greatest Support 40 | 40 40 30 Greatest Overweight (x) 4 | . 1 4 Average Overweight (x) 1 | . . 2 Largest Inventory Capacity 15 | 8 15 15 Average Capacity 13 | 6 13 15 Most Carried 15 | 4 9 15 Average Carried 9 | 2 7 11 Final Capacity 15 | 8 15 15 Final Carried 15 | 4 5 15 Class Distribution -------------------- 100% | Mutant Dominant Class ---------------- Mutant | -10/Materials Mutant | -10/Subcaves Resources | -11 -10 -10 ----------- Run | Yrd Mat Sub Matter Collected 675 | 207 218 250 Remotely . | . . . Salvage Created 960 | . 650 310 Parts 52 | . 35 17 Haulers Intercepted 2 | . 2 . Recyclers Shooed . | . . . Parts Field Recycled . | . . . Retrieved Matter . | . . . Parts Self-Destructed 8 | . . 8 Prevented . | . . . Kills | -11 -10 -10 ------- Run | Yrd Mat Sub Combat Hostiles Destroyed 24 | . 12 12 Guns 7 | . 7 . Cannons 6 | . 4 2 AOE 9 | . . 9 Classes Destroyed 7 | . 5 2 Hauler 2 | . 2 . Recycler 1 | . 1 . Watcher 2 | . 2 . Swarmer 10 | . 3 7 Grunt 9 | . 9 . Cobbler 1 | . . 1 Subdweller 5 | . . 5 Best Kill Streak 4 | . 3 4 Combat Bots Only 4 | . 3 4 Max Kills in Single Turn 3 | . 1 3 Gunslinging . | . . . Exploded 3 | . . 3 Melee . | . . . Uniques/NPCs Destroyed . | . . . Combat | -11 -10 -10 -------- Run | Yrd Mat Sub Hostile Shots Fired 107 | . 70 37 Missed 26 | . 15 11 Damage Taken 1289 | . 714 575 Core 259 | . 125 134 Absorbed by Shields . | . . . Core Remaining (%) 100 | 100 . . Volleys Fired 85 | . 47 38 Largest 2 | . 2 2 Hottest 160 | . 136 160 Shots Fired 150 | . 89 61 Gun 61 | . 56 5 Cannon 74 | . 33 41 Launcher 15 | . . 15 Special . | . . . Kinetic . | . . . Thermal 74 | . 33 41 Explosive 15 | . . 15 Electromagnetic 61 | . 56 5 Robot Hit Streak 11 | . 11 8 Robot Miss Streak 5 | . 5 4 Penetration Max . | . . . Secondary Targets 1 | . 1 . Max Gunslinging Chain 1 | . 1 . Shots Hit Robots 95 | . 61 34 Core Hits 43 | . 25 18 Critical Kills 2 | . 1 1 Critical Parts Destroyed . | . . . Critical Strikes 2 | . 1 1 Meltdown 2 | . 1 1 Melee Attacks . | . . . Impact . | . . . Slashing . | . . . Piercing . | . . . Sneak Attacks . | . . . Combat Hostiles . | . . . Follow-up Attacks . | . . . Damage Inflicted 2289 | . 947 1342 Guns 634 | . 573 61 Cannons 1003 | . 349 654 Explosions 648 | . 21 627 Melee . | . . . Ramming 4 | . 4 . Kinetic . | . . . Thermal 1024 | . 370 654 Explosive 627 | . . 627 Electromagnetic 634 | . 573 61 Impact . | . . . Slashing . | . . . Piercing . | . . . Highest Corruption . | . . . Average Corruption . | . . . Corruption Purged . | . . . Corruption Blocked . | . . . Overload Shots . | . . . Overflow Damage 30 | . . 30 Projectiles . | . . . Explosions 30 | . . 30 Melee . | . . . Knockbacks . | . . . Impact . | . . . Kinetic . | . . . Secondary . | . . . Self-Inflicted Damage 50 | . 34 16 Shots 2 | . 1 1 Rammed 3 | . 3 . Targets Rammed 3 | . 3 . Kicked . | . . . Crushed . | . . . Highest Temperature 249 | . 249 181 Average Temperature 91 | . 95 75 Received Heat Transfer 318 | . 270 48 Effects 1 | . 1 . Energy Bleed 1 | . 1 . Siege Activations . | . . . Robots Corrupted 1 | . 1 . Combat Hostiles . | . . . Parts Fried 2 | . 2 . Impact Corruptions . | . . . Robots Melted 2 | . 1 1 Combat Hostiles 2 | . 1 1 Parts Melted 5 | . 1 4 Heat Transferred 1604 | . 679 925 Parts Sabotaged . | . . . Parts Stolen . | . . . Parts Stripped . | . . . Power Chain Reactions 1 | . 1 . Alert | -11 -10 -10 ------- Run | Yrd Mat Sub Peak Influence 162 | . 162 . Initial . | . . . Average 62 | . 67 . Maximum Alert Level . | . . . Low Security (%) 100 | 100 100 . Level 1 . | . . . Level 2 . | . . . Level 3 . | . . . Level 4 . | . . . Level 5 . | . . . High Security . | . . . Max Security . | . . . Squads Dispatched 2 | . 2 . Investigation 1 | . 1 . Extermination . | . . . Reinforcement 1 | . 1 . Assault . | . . . Garrison . | . . . Intercept . | . . . Searches Triggered . | . . . Construction Impeded . | . . . Haulers Reinforced . | . . . Active Scanning Responses . | . . . Cargo Convoy Interrupts . | . . . Stealth | -11 -10 -10 --------- Run | Yrd Mat Sub Distress Signals . | . . . Communications Jammed . | . . . Distress Signals . | . . . Times Spotted 37 | . 23 14 Peak Tracking Total 4 | . 4 4 Tactical Retreats 2 | . 1 1 Traps | -11 -10 -10 ------- Run | Yrd Mat Sub Traps Triggered 6 | . 3 3 Indirectly . | . . . Trap Hack Attempts . | . . . Triggered . | . . . Disarmed . | . . . Reprogrammed . | . . . Reused 1 | . . 1 Traps Extracted . | . . . Installed 1 | . . 1 Triggered . | . . . Most Traps Carried 1 | . . 1 Machines | -11 -10 -10 ---------- Run | Yrd Mat Sub Machines Disabled 1 | . 1 . Max in Single Turn 1 | . 1 . Machines Repaired . | . . . Machines Dismantled . | . . . Machines Sabotaged . | . . . Overloaded Fab Kills . | . . . Hacking | -11 -10 -10 --------- Run | Yrd Mat Sub Machines Accessed 8 | . 8 . Terminals 7 | . 7 . Fabricators . | . . . Repair Stations . | . . . Recycling Units 1 | . 1 . Scanalyzers . | . . . Garrison Access . | . . . Total Hacks 25 | . 25 . Successful 12 | . 12 . Failed 12 | . 12 . Catastrophic . | . . . Database Lockouts 1 | . 1 . Manual 20 | . 20 . Terminals 22 | . 22 . Fabricators . | . . . Repair Stations . | . . . Recycling Units 3 | . 3 . Scanalyzers . | . . . Garrison Access . | . . . Terminal Hacks 4 | . 4 . Robot Analysis 1 | . 1 . Branch Access Points 1 | . 1 . Terminal Index 1 | . 1 . Zone Layout 1 | . 1 . Fabricator Hacks . | . . . Repair Station Hacks . | . . . Recycling Unit Hacks . | . . . Scanalyzer . | . . . Garrison Access Hacks . | . . . Unauthorized Hacks 5 | . 5 . Terminals 5 | . 5 . Track 1 | . 1 . Assimilate 1 | . 1 . Botnet 2 | . 2 . Operators 1 | . 1 . Fabricators . | . . . Repair Stations . | . . . Recycling Units . | . . . Scanalyzers . | . . . Garrison Access . | . . . Data Cores Recovered . | . . . Used . | . . . Hacking Detections 5 | . 5 . Full Trace Events 1 | . 1 . Feedback Events . | . . . Feedback Blocked . | . . . Robot Schematics Acquired . | . . . Robots Built . | . . . Authchips . | . . . Time . | . . . Total Robot Build Rating . | . . . Part Schematics Acquired . | . . . Parts Built . | . . . Authchips . | . . . Time . | . . . Total Part Build Rating . | . . . Parts Repaired . | . . . Time . | . . . Parts Recycled . | . . . Recycled Matter . | . . . Retrieved Matter . | . . . Retrieved Components . | . . . Parts Scanalyzed . | . . . Part Schematics Acquired . | . . . Parts Damaged . | . . . Bothacking | -11 -10 -10 ------------ Run | Yrd Mat Sub Used RIF Installer . | . . . Robots Hacked . | . . . Non-combat . | . . . Combat . | . . . Robot Hacks Applied . | . . . Relay Couplers Released . | . . . Fabnet Peak Effective % . | . . . Robots Rewired . | . . . Allies Hacked . | . . . Hacks Repelled . | . . . Allies | -11 -10 -10 -------- Run | Yrd Mat Sub Total Allies . | . . . Largest Group . | . . . Highest-Rated Group . | . . . Highest-Rated Ally . | . . . Total Orders . | . . . Ally Attacks . | . . . Total Damage . | . . . Kills . | . . . Allies Corrupted . | . . . Allies Melted . | . . . Intel | -11 -10 -10 ------- Run | Yrd Mat Sub Robot Analysis Total 1 | . 1 . Derelict Logs Recovered 1 | . . 1 Drone Launches . | . . . Drone Recoveries . | . . . Exploration | -11 -10 -10 ------------- Run | Yrd Mat Sub Turns Passed 2745 | 93 1201 1451 Spaces Moved 1732 | 55 594 1083 Core 6 | 6 . . Treads 563 | 49 514 . Legs . | . . . Wheels 1163 | . 80 1083 Hover . | . . . Flight . | . . . Fastest Speed 50 | 50 95 95 Average Speed 134 | 148 164 117 Slowest Speed 240 | 160 240 140 Overloaded Moves . | . . . Propulsion Burnouts . | . . . Robots Hopped . | . . . Cave-ins Triggered . | . . . Exploration Rate (%) 54 | 5 90 68 Regions Visited 2 Branch Regions 1 Pre-discovered Areas . | . . . Known Exits Taken . | . . . Unknown Exits Taken 2 | 1 1 . Scrap Searched 5 | . . 5 Spaces Dug 44 | . . 44 Terrain Destroyed 94 | . 2 92 Melee . | . . . Projectile 4 | . . 4 AOE 90 | . 2 88 Terrain Rammed . | . . . Walls Destroyed . | . . . Machines Disabled . | . . . Actions | -11 -10 -10 --------- Run | Yrd Mat Sub Total 1987 | 64 726 1197 Wait 99 | . 50 49 Move 1730 | 54 593 1083 Hop . | . . . Pick Up 26 | 4 9 13 Fast Attach 15 | 6 8 1 Attach 8 | . 6 2 Detach . | . . . Swap 12 | . 4 8 Drop 8 | . 6 2 Fire 85 | . 47 38 Melee . | . . . Ram . | . . . Kick . | . . . Crush 3 | . 3 . Escape Stasis . | . . . Rewire . | . . . Trap 1 | . . 1 Miscellaneous . | . . . Route ------- -11/Scrapyard -10/Materials (discovered 6 exits: [*Mat x3] / *Min x2 / [*Sub]) -10/Subcaves (discovered 2 exits: [*Mat x2]) History --------- Turn | Location | Event 9 | -11/Scrapyard | Discovered new exit (range 16) 94 | -11/Scrapyard | Entered Materials 308 | -10/Materials | Build established: Mutant 461 | -10/Materials | Discovered new exit (range 7) 490 | -10/Materials | Discovered new exit (range 13) 562 | -10/Materials | Discovered new exit (range 14) 702 | -10/Materials | Identified exit to Mines 717 | -10/Materials | Discovered new exit (range 13) 898 | -10/Materials | Discovered new exit (range 8) 1012 | -10/Materials | Lost 3 parts (1p1n1w) 1105 | -10/Materials | Central database locked down 1288 | -10/Materials | Discovered new exit (range 8) 1295 | -10/Materials | Entered Subcaves 1653 | -10/Subcaves | Core integrity fell below 50% 1952 | -10/Subcaves | Ambushed by Subdweller buried in earth 2144 | -10/Subcaves | Shifting Twisted Machinery released Battle Cannon 2146 | -10/Subcaves | Shifting Twisted Machinery released Sub. Power Source 2156 | -10/Subcaves | Discovered new exit (range 8) 2548 | -10/Subcaves | Learned Materials stockpile data 2589 | -10/Subcaves | Discovered new exit (range 7) 2641 | -10/Subcaves | Core integrity fell below 20% 2746 | -10/Subcaves | Destroyed by RV-3HF(R) with Subdweller Machine Gun Last Messages --------------- Data stored: Materials stockpile data. 02551_ Searching scrap... 02551_ Found Riot Gun. 02551_ Found Multitool. 02551_ Found 45 Matter. 02553_ Acquired Multitool. 02569_ Subatomizers dissect the Sub. Optics. 02589_ EXIT=FOUND 02612_ Triggered Shrapnel Trap. 02612_ An expanding cloud of shrapnel blasts out in all directions. 02612_ Cooling System destroyed. 02617_ 9P-SRD(u) builds Twisted Machinery. 02640_ Triggered Piercing Trap. 02640_ Spikes shoot up from the floor. 02640_ Critical hit (Impale). 02644_ Triggered Piercing Trap. 02644_ Spikes shoot up from the floor. 02644_ Wheel destroyed. 02644_ Critical hit (Impale). 02744_ Mak. Power Source destroyed. Map ----- +----------------------------------------------------+ | ##????????????????????????????????#### #######? | | #???????????????????????????????????## ##??????? | | ???????????????????????????????????## #???????? | | ???????????????????????????????????# #???????? | | ???????????????????????????????????# ###???????? | | ???????????????????????????????????# #?????????? | | ???????????????????????????????????## #?????????? | | ????????????????????????????????????# #?????????? | | ????????????????????????????????????# ?????????? | | ????????????????????????????????????# ????????? | | ????????????????????????????????????## #???????? | | ?????????????????????????????????????# ##???????? | | ????????????????????????????????????? #????????? | | ????????????????????????????????????? ????????? | | ????????????????????????????????????? ????????? | | ????????????????????????????????????? ????????? | | ????????????????????????????????????? ???????? | | ???????#####??????????????????##????? #???????? | | ??????## ##?????##????????? "#?????## ##???????? | | ??????# #?????# $??????? ???????? ##???????? | | ??????# ##????? ?##### ????????? ??????? | | #???### ##?????? # ????????? ??????? | | #?## ##??????? ##????????# #???????? | | ## ##??????##R <#??????## #????????? | | ####?###< ###???? #????????? | | # ### @ < ###? ## ????? | | ## ????? | | # ## #?# ###### #### ???? | | ?# ## ### ## ##?# ????? | | ??# ## #?## #### ## ?????????? | | #### #??# ### #####????????????? | | ## ##?# ## #????????????????? | | #?# #????????????????? | | ### #?# #?#####??????????? | | #?## #?# ### #??????????? | | ##??# ### #??????????? | | ######???# ## #??????????? | | #????????## ## ####### #??????????? | | ###?????????########## ##?????#####??????????? | | ?????????????????????#######?????????????????????? | | ?????????????????????????????????????????????????? | | ?????????????????????????????????????????????????? | | ?????????????????????????????????????????????????? | | ?????????????????????????????????????????????????? | | ?????????????????????????????????????????????????? | | ?????????????????????????????????????????????????? | | ?????????????????????????????????????????????????? | | ?????????????????????????????????????????????????? | | ?????????????????????????????????????????????????? | | ?????????????????????????????????????????????????? | +----------------------------------------------------+ Best States ------------- Heat Dissipation 47 Energy Generation 15 Energy Capacity 250 Matter Stores 300 Matter Capacity 300 Sight Range 16 Terrain Scan Density 10 Evasion (%) 41 Recoil Reduction 2 Item Schematics ----------------- None Robot Schematics ------------------ None Fabricated ------------ Nothing Alien Tech Used ----------------- None Achievements -------------- None Challenges ------------ None Game ------ Seed ControlGyrokineticWeb Manual? 0 Play Time 00:22:58 Cumulative 454.0 hours Start 2025.04.27 @ 20:41:22 End 2025.04.27 @ 21:04:57 Sessions 1 Manual Loads 0 Difficulty Rogue Special Mode None Game No. 287 Rogue 284 Adventurer 3 Explorer 0 Win Type - Total 8 Types 7/0/1/0/0/0/0/0/0 Lore% 60 Gallery% 74 Achievement% 67 Wizard Run 0 Options --------- Layout 0 ASCII 0 Keyboard 0 Movement Numpad Keybinds 0 Fullscreen 1 Font 18/SmallcapsGlow Map View 76x50 Zoom Use 0% Tactical HUD 1 Map Filters NONE Filters NONE Steam 1 RUN: de5de811-dca7-47bc-945a-cdcda887ead2